[Event "Titled Tuesday Blitz August 22 Early 2023"]
[White "Kosteniuk, Alexandra"]
[Black "Glavina, Pablo"]
[WhiteFideId "4128125"]
[BlackFideId "100234"]
[WhiteElo "2751"]
[BlackElo "2517"]
[Result "1-0"]
[Round "2"]
[TimeControl "180+1"]
[Date "2023.08.22"]
[WhiteClock "0:00:03"]
[BlackClock "0:00:00"]
[Board "76"]

1. Nf3 {[%clk 0:03:00]}  d5 {[%clk 0:02:59]} 2. g3 {[%clk 0:03:01]}  Nc6 {[%clk 0:02:59]} 3. d4 {[%clk 0:02:59]}  Bf5 {[%clk 0:02:59]} 4. Bg2 {[%clk 0:02:58]}  Nb4 {[%clk 0:02:59]} 5. Na3 {[%clk 0:02:56]}  e6 {[%clk 0:02:57]} 6. O-O {[%clk 0:02:55]}  Be7 {[%clk 0:02:56]} 7. Ne5 {[%clk 0:02:52]}  c6 {[%clk 0:02:49]} 8. f3 {[%clk 0:02:46]}  Nf6 {[%clk 0:02:48]} 9. Re1 {[%clk 0:02:39]}  h6 {[%clk 0:02:47]} 10. e4 {[%clk 0:02:35]}  Bh7 {[%clk 0:02:47]} 11. c3 {[%clk 0:02:33]}  Na6 {[%clk 0:02:47]} 12. Nc2 {[%clk 0:02:33]}  O-O {[%clk 0:02:46]} 13. b4 {[%clk 0:02:22]}  Nc7 {[%clk 0:02:43]} 14. a4 {[%clk 0:02:10]}  a5 {[%clk 0:02:40]} 15. g4 {[%clk 0:02:01]}  Nd7 {[%clk 0:01:55]} 16. Nd3 {[%clk 0:01:57]}  b5 {[%clk 0:01:45]} 17. bxa5 {[%clk 0:01:42]}  Rxa5 {[%clk 0:01:44]} 18. Ncb4 {[%clk 0:01:42]}  Qa8 {[%clk 0:01:39]} 19. Bf4 {[%clk 0:01:38]}  Rc8 {[%clk 0:01:23]} 20. Bxc7 {[%clk 0:00:51]}  Rxc7 {[%clk 0:01:22]} 21. axb5 {[%clk 0:00:51]}  cxb5 {[%clk 0:01:11]} 22. Rxa5 {[%clk 0:00:51]}  Qxa5 {[%clk 0:01:11]} 23. exd5 {[%clk 0:00:51]}  Rxc3 {[%clk 0:00:39]} 24. dxe6 {[%clk 0:00:50]}  fxe6 {[%clk 0:00:27]} 25. Qe2 {[%clk 0:00:51]}  Nf8 {[%clk 0:00:17]} 26. d5 {[%clk 0:00:36]}  Bxd3 {[%clk 0:00:06]} 27. Nxd3 {[%clk 0:00:33]}  Rxd3 {[%clk 0:00:06]} 28. dxe6 {[%clk 0:00:33]}  Rd6 {[%clk 0:00:03]} 29. f4 {[%clk 0:00:31]}  b4 {[%clk 0:00:01]} 30. f5 {[%clk 0:00:30]}  Qc5+ {[%clk 0:00:02]} 31. Kh1 {[%clk 0:00:29]}  b3 {[%clk 0:00:02]} 32. Be4 {[%clk 0:00:17]}  Rb6 {[%clk 0:00:03]} 33. Qb2 {[%clk 0:00:16]}  Bf6 {[%clk 0:00:02]} 34. Qb1 {[%clk 0:00:16]}  b2 {[%clk 0:00:03]} 35. Rd1 {[%clk 0:00:16]}  Kh7 {[%clk 0:00:02]} 36. h4 {[%clk 0:00:14]}  Qe5 {[%clk 0:00:01]} 37. g5 {[%clk 0:00:13]}  hxg5 {[%clk 0:00:02]} 38. hxg5 {[%clk 0:00:13]}  Rb3 {[%clk 0:00:01]} 39. Bg2 {[%clk 0:00:05]}  Bxg5 {[%clk 0:00:02]} 40. f6+ {[%clk 0:00:05]}  g6 {[%clk 0:00:01]} 41. e7 {[%clk 0:00:05]}  Qg3 {[%clk 0:00:00]} 42. exf8=N+ {[%clk 0:00:03]} 1-0


[Site "https://www.chess.com"]

[Event "Titled Tuesday Blitz August 22 Early 2023"]
[White "Blanco Ronquillo, Humberto L."]
[Black "Karamsetty, Jeevan"]
[WhiteFideId "3504239"]
[BlackFideId "2025337"]
[WhiteElo "2742"]
[BlackElo "2515"]
[Result "0-1"]
[Round "2"]
[TimeControl "180+1"]
[Date "2023.08.22"]
[WhiteClock "0:00:19"]
[BlackClock "0:00:40"]
[Board "78"]

1. e4 {[%clk 0:03:00]}  g6 {[%clk 0:02:59]} 2. d4 {[%clk 0:02:59]}  d6 {[%clk 0:02:58]} 3. Nc3 {[%clk 0:02:59]}  Bg7 {[%clk 0:02:57]} 4. h3 {[%clk 0:02:59]}  a6 {[%clk 0:02:53]} 5. Nf3 {[%clk 0:02:59]}  Nf6 {[%clk 0:02:50]} 6. Be2 {[%clk 0:02:58]}  b5 {[%clk 0:02:48]} 7. e5 {[%clk 0:02:58]}  Nfd7 {[%clk 0:02:37]} 8. e6 {[%clk 0:02:52]}  fxe6 {[%clk 0:02:38]} 9. Ng5 {[%clk 0:02:52]}  Nf6 {[%clk 0:02:37]} 10. Bf3 {[%clk 0:02:52]}  c6 {[%clk 0:02:21]} 11. Qe2 {[%clk 0:02:45]}  Qd7 {[%clk 0:02:20]} 12. h4 {[%clk 0:02:35]}  b4 {[%clk 0:02:08]} 13. Nce4 {[%clk 0:02:30]}  Nxe4 {[%clk 0:02:00]} 14. Bxe4 {[%clk 0:02:30]}  d5 {[%clk 0:02:00]} 15. Bd3 {[%clk 0:02:28]}  Bxd4 {[%clk 0:01:58]} 16. Nxh7 {[%clk 0:02:24]}  c5 {[%clk 0:01:40]} 17. Bxg6+ {[%clk 0:01:57]}  Kd8 {[%clk 0:01:40]} 18. Ng5 {[%clk 0:01:58]}  Kc7 {[%clk 0:01:35]} 19. Bf4+ {[%clk 0:01:57]}  Kb7 {[%clk 0:01:29]} 20. Be5 {[%clk 0:01:43]}  Rf8 {[%clk 0:01:11]} 21. Bxd4 {[%clk 0:01:41]}  cxd4 {[%clk 0:01:12]} 22. Bf7 {[%clk 0:01:35]}  Nc6 {[%clk 0:01:03]} 23. Bxe6 {[%clk 0:01:34]}  Qd6 {[%clk 0:01:02]} 24. g3 {[%clk 0:00:53]}  d3 {[%clk 0:00:56]} 25. Qg4 {[%clk 0:00:38]}  Qe5+ {[%clk 0:00:48]} 26. Kf1 {[%clk 0:00:33]}  dxc2 {[%clk 0:00:42]} 27. Re1 {[%clk 0:00:19]}  Qxe1+ {[%clk 0:00:40]} 0-1


[Site "https://www.chess.com"]

[Event "Titled Tuesday Blitz August 22 Early 2023"]
[White "Kourkoulos-Arditis, Stamatis"]
[Black "Sanduleac, Vasile"]
[WhiteFideId "4221990"]
[BlackFideId "13900161"]
[WhiteElo "2732"]
[BlackElo "2498"]
[Result "1/2-1/2"]
[Round "2"]
[TimeControl "180+1"]
[Date "2023.08.22"]
[WhiteClock "0:00:27"]
[BlackClock "0:00:46"]
[Board "79"]

1. d4 {[%clk 0:03:00]}  d6 {[%clk 0:02:59]} 2. Bf4 {[%clk 0:02:57]}  g6 {[%clk 0:02:58]} 3. e3 {[%clk 0:02:57]}  Bg7 {[%clk 0:02:59]} 4. h3 {[%clk 0:02:57]}  Nd7 {[%clk 0:02:59]} 5. Nf3 {[%clk 0:02:57]}  b6 {[%clk 0:02:59]} 6. Bd3 {[%clk 0:02:56]}  Bb7 {[%clk 0:02:59]} 7. Bh2 {[%clk 0:02:55]}  Ngf6 {[%clk 0:02:59]} 8. O-O {[%clk 0:02:54]}  O-O {[%clk 0:02:59]} 9. c3 {[%clk 0:02:54]}  c5 {[%clk 0:02:59]} 10. Nbd2 {[%clk 0:02:54]}  a6 {[%clk 0:02:58]} 11. a4 {[%clk 0:02:53]}  Qc7 {[%clk 0:02:57]} 12. e4 {[%clk 0:02:52]}  e5 {[%clk 0:02:53]} 13. d5 {[%clk 0:02:51]}  Nh5 {[%clk 0:02:48]} 14. Re1 {[%clk 0:02:50]}  Nf4 {[%clk 0:02:46]} 15. Bf1 {[%clk 0:02:47]}  Bc8 {[%clk 0:02:46]} 16. Nc4 {[%clk 0:02:36]}  Rb8 {[%clk 0:02:42]} 17. b4 {[%clk 0:02:28]}  h6 {[%clk 0:02:32]} 18. Rb1 {[%clk 0:02:21]}  Nh5 {[%clk 0:02:16]} 19. Qd2 {[%clk 0:02:01]}  f5 {[%clk 0:02:13]} 20. Nh4 {[%clk 0:01:59]}  fxe4 {[%clk 0:02:08]} 21. Nxg6 {[%clk 0:01:52]}  Rf7 {[%clk 0:02:07]} 22. Rxe4 {[%clk 0:01:50]}  Ndf6 {[%clk 0:02:05]} 23. Rh4 {[%clk 0:01:49]}  Bf5 {[%clk 0:02:04]} 24. Ngxe5 {[%clk 0:01:42]}  dxe5 {[%clk 0:02:00]} 25. Bxe5 {[%clk 0:01:41]}  Qd8 {[%clk 0:01:59]} 26. Rd1 {[%clk 0:01:41]}  Bg6 {[%clk 0:01:55]} 27. Bxb8 {[%clk 0:01:38]}  Qxb8 {[%clk 0:01:55]} 28. d6 {[%clk 0:01:38]}  Nd7 {[%clk 0:01:38]} 29. Bd3 {[%clk 0:01:34]}  Bxd3 {[%clk 0:01:36]} 30. Qxd3 {[%clk 0:01:35]}  Nf4 {[%clk 0:01:25]} 31. Qe4 {[%clk 0:01:34]}  Qf8 {[%clk 0:01:24]} 32. g3 {[%clk 0:01:30]}  Nxh3+ {[%clk 0:01:11]} 33. Rxh3 {[%clk 0:01:28]}  Rxf2 {[%clk 0:01:11]} 34. Qe6+ {[%clk 0:01:26]}  Kh7 {[%clk 0:01:09]} 35. Qxd7 {[%clk 0:01:13]}  Qf3 {[%clk 0:01:07]} 36. Rxh6+ {[%clk 0:00:55]}  Kxh6 {[%clk 0:01:07]} 37. Qh3+ {[%clk 0:00:55]}  Kg6 {[%clk 0:01:06]} 38. Re1 {[%clk 0:00:50]}  Re2 {[%clk 0:00:58]} 39. Rf1 {[%clk 0:00:35]}  Qe4 {[%clk 0:00:51]} 40. d7 {[%clk 0:00:30]}  Bd4+ {[%clk 0:00:49]} 41. cxd4 {[%clk 0:00:28]}  Qxd4+ {[%clk 0:00:49]} 42. Kh1 {[%clk 0:00:26]}  Qe4+ {[%clk 0:00:47]} 43. Kg1 {[%clk 0:00:26]}  Qd4+ {[%clk 0:00:46]} 44. Kh1 {[%clk 0:00:26]}  Qe4+ {[%clk 0:00:46]} 45. Kg1 {[%clk 0:00:27]}  Qd4+ {[%clk 0:00:46]} 1/2-1/2


[Site "https://www.chess.com"]

[Event "Titled Tuesday Blitz August 22 Early 2023"]
[White "Hulka, Valentyn"]
[Black "Fule, Simon"]
[WhiteFideId "34107061"]
[BlackFideId "787515"]
[WhiteElo "2724"]
[BlackElo "2464"]
[Result "1-0"]
[Round "2"]
[TimeControl "180+1"]
[Date "2023.08.22"]
[WhiteClock "0:00:19"]
[BlackClock "0:00:00"]
[Board "82"]

1. d4 {[%clk 0:02:59]}  Nf6 {[%clk 0:02:59]} 2. c4 {[%clk 0:03:00]}  g6 {[%clk 0:02:59]} 3. Nc3 {[%clk 0:03:00]}  d6 {[%clk 0:03:00]} 4. e4 {[%clk 0:03:00]}  Nbd7 {[%clk 0:03:00]} 5. h3 {[%clk 0:02:59]}  e5 {[%clk 0:03:00]} 6. Nf3 {[%clk 0:02:58]}  Bg7 {[%clk 0:03:01]} 7. Be3 {[%clk 0:02:53]}  O-O {[%clk 0:03:00]} 8. d5 {[%clk 0:02:54]}  Nc5 {[%clk 0:02:52]} 9. Nd2 {[%clk 0:02:52]}  a5 {[%clk 0:02:51]} 10. g4 {[%clk 0:02:50]}  c6 {[%clk 0:02:46]} 11. Be2 {[%clk 0:02:49]}  cxd5 {[%clk 0:02:46]} 12. cxd5 {[%clk 0:02:50]}  Bd7 {[%clk 0:02:30]} 13. g5 {[%clk 0:02:47]}  Ne8 {[%clk 0:01:54]} 14. h4 {[%clk 0:02:46]}  f5 {[%clk 0:01:52]} 15. gxf6 {[%clk 0:02:45]}  Nxf6 {[%clk 0:01:51]} 16. Qc2 {[%clk 0:02:20]}  Rc8 {[%clk 0:01:47]} 17. h5 {[%clk 0:02:10]}  b5 {[%clk 0:01:33]} 18. hxg6 {[%clk 0:01:57]}  b4 {[%clk 0:01:17]} 19. gxh7+ {[%clk 0:01:57]}  Kh8 {[%clk 0:01:16]} 20. Nb5 {[%clk 0:01:43]}  Ncxe4 {[%clk 0:01:11]} 21. Qd1 {[%clk 0:01:43]}  Rb8 {[%clk 0:00:25]} 22. Nxe4 {[%clk 0:01:37]}  Nxe4 {[%clk 0:00:25]} 23. Na7 {[%clk 0:01:35]}  Qf6 {[%clk 0:00:20]} 24. Rh2 {[%clk 0:01:28]}  Qg6 {[%clk 0:00:18]} 25. Bf1 {[%clk 0:01:13]}  Bg4 {[%clk 0:00:16]} 26. Qd3 {[%clk 0:01:08]}  Bf5 {[%clk 0:00:14]} 27. Rg2 {[%clk 0:01:04]}  Qf7 {[%clk 0:00:14]} 28. Nc6 {[%clk 0:00:57]}  Rbc8 {[%clk 0:00:11]} 29. Qd1 {[%clk 0:00:52]}  Nf6 {[%clk 0:00:10]} 30. Nxa5 {[%clk 0:00:40]}  Nxd5 {[%clk 0:00:10]} 31. Nc4 {[%clk 0:00:35]}  Rcd8 {[%clk 0:00:06]} 32. Qd2 {[%clk 0:00:33]}  Be4 {[%clk 0:00:05]} 33. Rg4 {[%clk 0:00:30]}  Nf6 {[%clk 0:00:05]} 34. Rh4 {[%clk 0:00:27]}  Qe6 {[%clk 0:00:05]} 35. Bh3 {[%clk 0:00:26]}  Qe7 {[%clk 0:00:03]} 36. Nb6 {[%clk 0:00:23]}  d5 {[%clk 0:00:03]} 37. Bg5 {[%clk 0:00:19]}  Bg6 {[%clk 0:00:01]} 38. Rc1 {[%clk 0:00:18]}  d4 {[%clk 0:00:01]} 39. Nc4 {[%clk 0:00:18]}  e4 {[%clk 0:00:00]} 40. Qf4 {[%clk 0:00:19]} 1-0


[Site "https://www.chess.com"]

[Event "Titled Tuesday Blitz August 22 Early 2023"]
[White "Koellner, Ruben Gideon"]
[Black "Issabayev, Dias"]
[WhiteFideId "12993093"]
[BlackFideId "13703110"]
[WhiteElo "2720"]
[BlackElo "2459"]
[Result "1-0"]
[Round "2"]
[TimeControl "180+1"]
[Date "2023.08.22"]
[WhiteClock "0:00:38"]
[BlackClock "0:00:04"]
[Board "83"]

1. d4 {[%clk 0:03:00]}  g6 {[%clk 0:02:49]} 2. Nf3 {[%clk 0:03:00]}  Bg7 {[%clk 0:02:47]} 3. Nbd2 {[%clk 0:03:00]}  d5 {[%clk 0:02:47]} 4. e3 {[%clk 0:03:01]}  Nf6 {[%clk 0:02:47]} 5. b4 {[%clk 0:03:01]}  O-O {[%clk 0:02:46]} 6. c4 {[%clk 0:03:00]}  a5 {[%clk 0:02:46]} 7. b5 {[%clk 0:03:00]}  c5 {[%clk 0:02:45]} 8. dxc5 {[%clk 0:03:01]}  Qc7 {[%clk 0:02:36]} 9. Ba3 {[%clk 0:02:57]}  Rd8 {[%clk 0:02:31]} 10. Rc1 {[%clk 0:02:54]}  Nbd7 {[%clk 0:02:19]} 11. cxd5 {[%clk 0:02:42]}  Nxd5 {[%clk 0:02:20]} 12. Bc4 {[%clk 0:02:42]}  Nc3 {[%clk 0:02:07]} 13. Qb3 {[%clk 0:02:41]}  Nxc5 {[%clk 0:01:56]} 14. Bxc5 {[%clk 0:02:32]}  Qxc5 {[%clk 0:01:57]} 15. Rxc3 {[%clk 0:02:32]}  Bxc3 {[%clk 0:01:53]} 16. Qxc3 {[%clk 0:02:33]}  Be6 {[%clk 0:01:50]} 17. Qe5 {[%clk 0:02:27]}  Qxe5 {[%clk 0:01:32]} 18. Nxe5 {[%clk 0:02:28]}  Rac8 {[%clk 0:01:32]} 19. Bxe6 {[%clk 0:01:49]}  Rc1+ {[%clk 0:01:29]} 20. Ke2 {[%clk 0:01:50]}  Rxh1 {[%clk 0:01:28]} 21. Bxf7+ {[%clk 0:01:50]}  Kg7 {[%clk 0:01:26]} 22. Bb3 {[%clk 0:01:49]}  Rxh2 {[%clk 0:01:20]} 23. g3 {[%clk 0:01:41]}  h5 {[%clk 0:01:18]} 24. Ndc4 {[%clk 0:01:38]}  a4 {[%clk 0:00:53]} 25. Bxa4 {[%clk 0:01:34]}  Rh1 {[%clk 0:00:54]} 26. Bb3 {[%clk 0:01:31]}  g5 {[%clk 0:00:52]} 27. Nf3 {[%clk 0:01:29]}  h4 {[%clk 0:00:50]} 28. Nxg5 {[%clk 0:01:26]}  h3 {[%clk 0:00:45]} 29. Ne6+ {[%clk 0:01:16]}  Kf6 {[%clk 0:00:45]} 30. Nxd8 {[%clk 0:01:17]}  h2 {[%clk 0:00:45]} 31. Nd2 {[%clk 0:01:09]}  Re1+ {[%clk 0:00:26]} 32. Kxe1 {[%clk 0:01:09]}  h1=Q+ {[%clk 0:00:27]} 33. Nf1 {[%clk 0:00:55]}  Qh5 {[%clk 0:00:19]} 34. a4 {[%clk 0:00:43]}  Qc5 {[%clk 0:00:15]} 35. Nd2 {[%clk 0:00:40]}  Qc7 {[%clk 0:00:12]} 36. Ne6 {[%clk 0:00:40]}  b6 {[%clk 0:00:08]} 37. Nd4 {[%clk 0:00:40]}  Qc1+ {[%clk 0:00:08]} 38. Ke2 {[%clk 0:00:40]}  e5 {[%clk 0:00:09]} 39. Nc6 {[%clk 0:00:37]}  Qb2 {[%clk 0:00:09]} 40. f4 {[%clk 0:00:36]}  exf4 {[%clk 0:00:09]} 41. gxf4 {[%clk 0:00:37]}  Qc3 {[%clk 0:00:08]} 42. Ne4+ {[%clk 0:00:37]}  Kf5 {[%clk 0:00:04]} 43. Nxc3 {[%clk 0:00:38]} 1-0


[Site "https://www.chess.com"]

[Event "Titled Tuesday Blitz August 22 Early 2023"]
[White "Matinian, Nikita"]
[Black "Nilsen, Tobias Lang"]
[WhiteFideId "24129100"]
[BlackFideId "1521624"]
[WhiteElo "2717"]
[BlackElo "2440"]
[Result "1-0"]
[Round "2"]
[TimeControl "180+1"]
[Date "2023.08.22"]
[WhiteClock "0:00:04"]
[BlackClock "0:00:00"]
[Board "85"]

1. e4 {[%clk 0:03:00]}  e6 {[%clk 0:03:00]} 2. d4 {[%clk 0:03:00]}  d5 {[%clk 0:03:00]} 3. Nc3 {[%clk 0:03:00]}  Bb4 {[%clk 0:03:00]} 4. e5 {[%clk 0:03:01]}  Ne7 {[%clk 0:02:59]} 5. Qg4 {[%clk 0:02:59]}  c5 {[%clk 0:02:56]} 6. a3 {[%clk 0:02:59]}  cxd4 {[%clk 0:02:49]} 7. axb4 {[%clk 0:02:56]}  dxc3 {[%clk 0:02:49]} 8. Qxg7 {[%clk 0:02:44]}  Rg8 {[%clk 0:02:48]} 9. Qxh7 {[%clk 0:02:45]}  Qc7 {[%clk 0:02:41]} 10. Nf3 {[%clk 0:02:45]}  Nbc6 {[%clk 0:02:35]} 11. Bb5 {[%clk 0:02:18]}  Bd7 {[%clk 0:02:34]} 12. O-O {[%clk 0:01:52]}  O-O-O {[%clk 0:02:19]} 13. bxc3 {[%clk 0:01:45]}  Kb8 {[%clk 0:02:13]} 14. Be3 {[%clk 0:01:21]}  a6 {[%clk 0:02:11]} 15. Bxc6 {[%clk 0:01:17]}  Bxc6 {[%clk 0:02:10]} 16. Nd4 {[%clk 0:00:32]}  Nf5 {[%clk 0:01:09]} 17. Nxf5 {[%clk 0:00:32]}  exf5 {[%clk 0:01:10]} 18. Bd4 {[%clk 0:00:27]}  Rg6 {[%clk 0:01:04]} 19. f3 {[%clk 0:00:22]}  Rdg8 {[%clk 0:01:03]} 20. Rf2 {[%clk 0:00:22]}  Qe7 {[%clk 0:00:41]} 21. Qh5 {[%clk 0:00:21]}  Qe6 {[%clk 0:00:37]} 22. Re1 {[%clk 0:00:16]}  Rh6 {[%clk 0:00:35]} 23. Qxh6 {[%clk 0:00:12]}  Qxh6 {[%clk 0:00:35]} 24. f4 {[%clk 0:00:09]}  Qe6 {[%clk 0:00:29]} 25. Re3 {[%clk 0:00:08]}  Bb5 {[%clk 0:00:29]} 26. Rh3 {[%clk 0:00:07]}  Qc6 {[%clk 0:00:28]} 27. Rh7 {[%clk 0:00:05]}  Qc4 {[%clk 0:00:20]} 28. Rxf7 {[%clk 0:00:05]}  Qa2 {[%clk 0:00:20]} 29. h3 {[%clk 0:00:05]}  Qb1+ {[%clk 0:00:20]} 30. Kh2 {[%clk 0:00:06]}  Ba4 {[%clk 0:00:14]} 31. Rxf5 {[%clk 0:00:05]}  Bxc2 {[%clk 0:00:13]} 32. Rg5 {[%clk 0:00:05]}  Re8 {[%clk 0:00:10]} 33. f5 {[%clk 0:00:05]}  Qe1 {[%clk 0:00:07]} 34. f6 {[%clk 0:00:04]}  Qc1 {[%clk 0:00:07]} 35. f7 {[%clk 0:00:03]}  Rc8 {[%clk 0:00:00]} 36. Rg8 {[%clk 0:00:04]} 1-0


[Site "https://www.chess.com"]

[Event "Titled Tuesday Blitz August 22 Early 2023"]
[White "Shoker, Samy"]
[Black "Ronka, Erik"]
[WhiteFideId "627143"]
[BlackFideId "505080"]
[WhiteElo "2712"]
[BlackElo "2428"]
[Result "1-0"]
[Round "2"]
[TimeControl "180+1"]
[Date "2023.08.22"]
[WhiteClock "0:01:10"]
[BlackClock "0:00:00"]
[Board "86"]

1. Nf3 {[%clk 0:02:52]}  d5 {[%clk 0:02:59]} 2. c4 {[%clk 0:02:52]}  c6 {[%clk 0:02:52]} 3. b3 {[%clk 0:02:51]}  Nf6 {[%clk 0:02:52]} 4. Bb2 {[%clk 0:02:51]}  Bg4 {[%clk 0:02:52]} 5. Ne5 {[%clk 0:02:51]}  Bf5 {[%clk 0:02:49]} 6. g3 {[%clk 0:02:50]}  Nbd7 {[%clk 0:02:48]} 7. Nxd7 {[%clk 0:02:48]}  Qxd7 {[%clk 0:02:46]} 8. h3 {[%clk 0:02:41]}  d4 {[%clk 0:02:35]} 9. d3 {[%clk 0:02:38]}  e5 {[%clk 0:02:31]} 10. Bg2 {[%clk 0:02:37]}  h5 {[%clk 0:02:17]} 11. Nd2 {[%clk 0:02:35]}  Be7 {[%clk 0:02:12]} 12. Rc1 {[%clk 0:02:26]}  O-O-O {[%clk 0:01:49]} 13. a3 {[%clk 0:02:21]}  g5 {[%clk 0:01:14]} 14. Nf3 {[%clk 0:02:16]}  g4 {[%clk 0:00:59]} 15. Nxe5 {[%clk 0:01:38]}  Qe6 {[%clk 0:00:59]} 16. f4 {[%clk 0:01:38]}  gxf3 {[%clk 0:00:34]} 17. Nxf3 {[%clk 0:01:37]}  Bd6 {[%clk 0:00:34]} 18. Nxd4 {[%clk 0:01:24]}  Bxg3+ {[%clk 0:00:33]} 19. Kd2 {[%clk 0:01:24]}  Ne4+ {[%clk 0:00:10]} 20. Kc2 {[%clk 0:01:18]}  Rxd4 {[%clk 0:00:06]} 21. Bxd4 {[%clk 0:01:19]}  Nf2 {[%clk 0:00:03]} 22. Qf1 {[%clk 0:01:17]}  Nxh1 {[%clk 0:00:02]} 23. Bxh8 {[%clk 0:01:13]}  Nf2 {[%clk 0:00:03]} 24. Bd4 {[%clk 0:01:13]}  Nxh3 {[%clk 0:00:01]} 25. Qf3 {[%clk 0:01:13]}  Ng5 {[%clk 0:00:00]} 26. Qxg3 {[%clk 0:01:10]} 1-0


[Site "https://www.chess.com"]

[Event "Titled Tuesday Blitz August 22 Early 2023"]
[White "Llanos, Guillermo"]
[Black "Morefield, Jason"]
[WhiteFideId "100358"]
[BlackFideId "30920825"]
[WhiteElo "2424"]
[BlackElo "2711"]
[Result "0-1"]
[Round "2"]
[TimeControl "180+1"]
[Date "2023.08.22"]
[WhiteClock "0:00:00"]
[BlackClock "0:00:04"]
[Board "87"]

1. c4 {[%clk 0:02:55]}  c6 {[%clk 0:02:58]} 2. Nf3 {[%clk 0:02:53]}  d5 {[%clk 0:02:58]} 3. e3 {[%clk 0:02:53]}  g6 {[%clk 0:02:58]} 4. Nc3 {[%clk 0:02:53]}  Bg7 {[%clk 0:02:59]} 5. d4 {[%clk 0:02:53]}  Nf6 {[%clk 0:02:59]} 6. h3 {[%clk 0:02:53]}  O-O {[%clk 0:02:59]} 7. Bd3 {[%clk 0:02:52]}  Bf5 {[%clk 0:02:53]} 8. Bxf5 {[%clk 0:02:51]}  gxf5 {[%clk 0:02:54]} 9. Qd3 {[%clk 0:02:48]}  e6 {[%clk 0:02:51]} 10. O-O {[%clk 0:02:48]}  Nbd7 {[%clk 0:02:48]} 11. b3 {[%clk 0:02:45]}  Ne4 {[%clk 0:02:48]} 12. Bb2 {[%clk 0:02:42]}  a6 {[%clk 0:02:47]} 13. Ne2 {[%clk 0:02:40]}  b5 {[%clk 0:02:45]} 14. Rac1 {[%clk 0:02:26]}  Qe7 {[%clk 0:02:43]} 15. Qd1 {[%clk 0:02:01]}  bxc4 {[%clk 0:02:35]} 16. bxc4 {[%clk 0:02:00]}  Rfb8 {[%clk 0:02:35]} 17. Ba1 {[%clk 0:01:52]}  Rb4 {[%clk 0:02:27]} 18. c5 {[%clk 0:01:44]}  Rab8 {[%clk 0:02:15]} 19. Nf4 {[%clk 0:01:42]}  Qd8 {[%clk 0:02:06]} 20. Nd3 {[%clk 0:01:42]}  R4b5 {[%clk 0:02:03]} 21. Nfe5 {[%clk 0:01:16]}  Nxe5 {[%clk 0:02:00]} 22. Nxe5 {[%clk 0:01:13]}  Bxe5 {[%clk 0:01:54]} 23. dxe5 {[%clk 0:01:12]}  Rxc5 {[%clk 0:01:53]} 24. Rxc5 {[%clk 0:01:04]}  Nxc5 {[%clk 0:01:54]} 25. Qc2 {[%clk 0:01:04]}  Qa5 {[%clk 0:01:39]} 26. Bd4 {[%clk 0:01:02]}  Ne4 {[%clk 0:01:36]} 27. Qxc6 {[%clk 0:01:00]}  Qxa2 {[%clk 0:01:32]} 28. f3 {[%clk 0:00:53]}  Ng3 {[%clk 0:01:22]} 29. Ra1 {[%clk 0:00:52]}  Rb1+ {[%clk 0:01:17]} 30. Rxb1 {[%clk 0:00:50]}  Qxb1+ {[%clk 0:01:17]} 31. Kh2 {[%clk 0:00:50]}  Nf1+ {[%clk 0:01:17]} 32. Kg1 {[%clk 0:00:47]}  Ng3+ {[%clk 0:01:07]} 33. Kf2 {[%clk 0:00:47]}  Nh1+ {[%clk 0:01:01]} 34. Ke2 {[%clk 0:00:46]}  Qa2+ {[%clk 0:01:01]} 35. Kd3 {[%clk 0:00:26]}  Nf2+ {[%clk 0:00:44]} 36. Kc3 {[%clk 0:00:26]}  Qa3+ {[%clk 0:00:31]} 37. Kc2 {[%clk 0:00:21]}  Qd3+ {[%clk 0:00:31]} 38. Kb2 {[%clk 0:00:20]}  Nd1+ {[%clk 0:00:29]} 39. Ka2 {[%clk 0:00:20]}  Nxe3 {[%clk 0:00:21]} 40. Qe8+ {[%clk 0:00:17]}  Kg7 {[%clk 0:00:20]} 41. Bxe3 {[%clk 0:00:16]}  Qxe3 {[%clk 0:00:20]} 42. Qb8 {[%clk 0:00:14]}  Qf2+ {[%clk 0:00:19]} 43. Kb3 {[%clk 0:00:13]}  Qxg2 {[%clk 0:00:19]} 44. f4 {[%clk 0:00:13]}  Qf3+ {[%clk 0:00:18]} 45. Kb4 {[%clk 0:00:13]}  Qxf4+ {[%clk 0:00:18]} 46. Kc5 {[%clk 0:00:13]}  d4 {[%clk 0:00:13]} 47. Kd6 {[%clk 0:00:13]}  d3 {[%clk 0:00:11]} 48. Ke7 {[%clk 0:00:13]}  Qg5+ {[%clk 0:00:11]} 49. Ke8 {[%clk 0:00:12]}  d2 {[%clk 0:00:10]} 50. Qd6 {[%clk 0:00:11]}  Qf4 {[%clk 0:00:05]} 51. Qf8+ {[%clk 0:00:10]}  Kg6 {[%clk 0:00:05]} 52. Qxf7+ {[%clk 0:00:10]}  Kg5 {[%clk 0:00:02]} 53. Qg7+ {[%clk 0:00:09]}  Kh4 {[%clk 0:00:02]} 54. Qxh7+ {[%clk 0:00:09]}  Kg3 {[%clk 0:00:02]} 55. Qd7 {[%clk 0:00:08]}  Kf2 {[%clk 0:00:02]} 56. Kf7 {[%clk 0:00:06]}  Ke1 {[%clk 0:00:02]} 57. Qxe6 {[%clk 0:00:04]}  d1=Q {[%clk 0:00:02]} 58. Qc6 {[%clk 0:00:03]}  Qxe5 {[%clk 0:00:02]} 59. Qh1+ {[%clk 0:00:03]}  Kd2 {[%clk 0:00:02]} 60. Qg2+ {[%clk 0:00:03]}  Qee2 {[%clk 0:00:02]} 61. Qd5+ {[%clk 0:00:03]}  Qd3 {[%clk 0:00:03]} 62. Qa5+ {[%clk 0:00:03]}  Qc3 {[%clk 0:00:03]} 63. Qd5+ {[%clk 0:00:03]}  Kc2 {[%clk 0:00:04]} 64. Qxf5+ {[%clk 0:00:02]}  Qdd3 {[%clk 0:00:04]} 65. Qf2+ {[%clk 0:00:03]}  Qdd2 {[%clk 0:00:04]} 66. Qf5+ {[%clk 0:00:02]}  Kb2 {[%clk 0:00:05]} 67. Qe6 {[%clk 0:00:00]}  Qc7+ {[%clk 0:00:04]} 0-1


[Site "https://www.chess.com"]